Cogmind - Beta 16.1 @@@ ROGUE MODE // 2026.01.14 @ 02:53:45 Player: cptwinky Result: Escaped! Performance ------------- Evolutions (9) 4500 Regions Visited (24) 4800 Robots Destroyed (432) 2160 Value Destroyed (21755) 21755 Prototype IDs (67) 1340 Alien Tech Used (0) 0 Bonus (17690) 17690 TOTAL SCORE: 52245 Bonus ------- High Alert Combat Kills 2581 Follower Combat Kills 4643 Hunted by Unchained 500 Destroyed Unchained 1000 Entered Garrisons 1400 Used RIF Installer 4500 Aligned with FarCom 300 Win 3000 Friendly Fire -234 Cogmind --------- Core Integrity 1501/1600 Matter 164/300 Energy 637/660 System Corruption 0% Temperature Cool (-189) Movement Treading (221) Ox1 Location To Epsilon Eridani Parts ------- > --- POWER (3) -------- Light Antimatter Reactor Particle Reactor Quantum Reactor > --- PROPULSION (6) --- Advanced Medium Treads Biometal Medium Treads Armored Heavy Treads Biometal Heavy Treads > --- UTILITY (13) ----- Advanced Cryofiber Web Advanced Cooling System Advanced Coolant Injector Huge Storage Unit Advanced Targeting Computer Core Analyzer Layered Heavy Armor Plating Graphene Brace Advanced Force Field Relay Coupler [NC] (11) Relay Coupler [Swarmer] (43) Relay Coupler [Grunt] (8) > --- WEAPON (3) ------- Enhanced Nova Cannon Enhanced Nova Cannon Advanced Remote Datajack > --- INVENTORY (25) --- Armored Heavy Treads Matter Compressor (250) Heavy Servo Lattice Advanced Transmission Jammer Relay Coupler [NC] (45) Improved Trap Extractor (5/6 Blade) Improved Trap Extractor (4/6 Segregator) Enhanced Nova Cannon Heavy Gauss Cannon Heavy Gauss Cannon Enhanced Hardcell Cannon Enhanced Hardcell Cannon Enhanced Hardcell Cannon Heavy Missile Launcher Precision Rocket Launcher Mini Smartbomb Launcher Mini Smartbomb Launcher Advanced Datajack Improved Remote Datajack Field Lobotomy Kit (2) Power Sword Power Sword Lance Peak State ------------ > --- POWER ------------ Light Antimatter Reactor Quantum Reactor Light Quantum Reactor > --- PROPULSION ------- Advanced Medium Treads Biometal Medium Treads Armored Heavy Treads Biometal Heavy Treads > --- UTILITY ---------- Advanced Cryofiber Web Advanced Cooling System Advanced Coolant Injector Huge Storage Unit Advanced Targeting Computer Core Analyzer Advanced Transmission Jammer Layered Heavy Armor Plating Graphene Brace Advanced Force Field Relay Coupler [Swarmer] Improved Corruption Screen > --- WEAPON ----------- Enhanced Nova Cannon Enhanced Nova Cannon Improved Remote Datajack > --- INVENTORY -------- Particle Reactor Matter Compressor Heavy Servo Lattice Relay Coupler [NC] Relay Coupler [NC] Relay Coupler [NC] Relay Coupler [NC] Improved Trap Extractor Improved Trap Extractor Enhanced Nova Cannon Heavy Gauss Cannon Heavy Gauss Cannon Enhanced Hardcell Cannon Enhanced Hardcell Cannon Enhanced Hardcell Cannon Heavy Missile Launcher Precision Rocket Launcher Mini Smartbomb Launcher Mini Smartbomb Launcher Advanced Datajack Advanced Remote Datajack Field Lobotomy Kit Power Sword Power Sword Lance [Rating: 183] Favorites ----------- Power Particle Reactor Engine Heavy Ion Engine Power Core Reinforced Fission Core Reactor Particle Reactor Propulsion Light Treads Treads Light Treads Leg Aluminum Leg Utility Core Analyzer Device Improved Hardlight Generator Storage Huge Storage Unit Processor Core Analyzer Hackware Relay Coupler [Grunt] Protection Medium Armor Plating Weapon Minigun Energy Gun Cooled Pulse Rifle Energy Cannon Enhanced Nova Cannon Ballistic Gun Minigun Ballistic Cannon Heavy Linear Accelerator Launcher Rocket Launcher Special Weapon Remote Datajack Impact Weapon Great Maul Slashing Weapon Katana Piercing Weapon Lance Special Melee Weapon Improved Datajack Build | -11 -10 -10 -9 -9 -9 -8 -8 -8 -7 -7 -7 -7 -6 -6 -5 -5 -5 -5 -4 -4 -4 -3 -2 -1 ------- Run | Yrd Mat Min Mat Min Exi Min Mat Gar Fac Gar Fac Gar Fac Gar Fac Gar Fac Gar Fac Gar Fac Res Res Acc Slots Evolved 18 | . . . 2 . . . 2 . 2 . . . 2 . 2 . . . 2 . . 2 2 2 Power 2 | . . . . . . . . . . . . . . . 1 . . . . . . 1 . . Propulsion 4 | . . . 1 . . . . . . . . . 1 . 1 . . . 1 . . . . . Utility 11 | . . . 1 . . . 1 . 2 . . . 1 . . . . . 1 . . 1 2 2 Weapon 1 | . . . . . . . 1 . . . . . . . . . . . . . . . . . Parts Attached 270 | 6 8 . 30 3 2 3 30 8 7 19 6 9 18 4 12 7 12 11 11 19 12 12 7 14 Power 30 | 1 1 . 5 . . . 1 1 1 1 . 1 3 . 1 . . 2 1 3 3 2 1 2 Engine 13 | 1 1 . 5 . . . 1 1 1 1 . . 1 . . . . 1 . . . . . . Core 5 | . . . . . . . . . . . . . . . 1 . . 1 . 2 1 . . . Reactor 12 | . . . . . . . . . . . . 1 2 . . . . . 1 1 2 2 1 2 Propulsion 63 | 2 2 . 9 1 1 . 12 2 1 6 1 1 3 1 1 1 3 3 2 3 2 3 2 1 Treads 62 | 2 2 . 9 1 1 . 12 2 . 6 1 1 3 1 1 1 3 3 2 3 2 3 2 1 Leg 1 | . . . . . . . . . 1 . . . . . . . . . . . . . . . Wheel . | . . . . . . . . . . . . . . . . . . . . . . . . . Hover . | . . . . . . . . . . . . . . . . . . . . . . . . . Flight . | . . . . . . . . . . . . . . . . . . . . . . . . . Utility 109 | 1 3 . 8 1 1 1 7 3 5 4 5 3 10 2 7 3 8 3 6 6 6 5 4 7 Device 32 | . 1 . 1 . . 1 1 . 2 3 2 1 3 . 3 2 2 1 1 2 1 1 3 1 Storage 9 | 1 1 . 2 . 1 . 1 . 1 . . 1 . . . . . . 1 . . . . . Processor 10 | . . . . . . . 1 . 1 . . . 2 . . . . . 1 1 2 2 . . Hackware 34 | . . . . . . . 1 2 1 . 3 . 2 2 3 1 4 2 2 2 2 1 1 5 Protection 24 | . 1 . 5 1 . . 3 1 . 1 . 1 3 . 1 . 2 . 1 1 1 1 . 1 Artifact . | . . . . . . . . . . . . . . . . . . . . . . . . . Weapon 68 | 2 2 . 8 1 . 2 10 2 . 8 . 4 2 1 3 3 1 3 2 7 1 2 . 4 Energy Gun 10 | 1 1 . 3 . . 1 1 . . . . 2 . . 1 . . . . . . . . . Energy Cannon 7 | . 1 . . . . . . . . . . 1 . . . . . . 2 1 1 . . 1 Ballistic Gun 21 | 1 . . 2 . . . 8 1 . 7 . . . . . . . 1 . 1 . . . . Ballistic Cannon 12 | . . . 2 . . . . . . . . 1 1 . . 2 . 1 . 3 . 1 . 1 Launcher 5 | . . . . . . 1 . . . . . . 1 . 1 . . . . . . 1 . 1 Special Weapon 7 | . . . . . . . . . . 1 . . . 1 1 1 . 1 . 1 . . . 1 Impact Weapon 1 | . . . . . . . 1 . . . . . . . . . . . . . . . . . Slashing Weapon 1 | . . . . 1 . . . . . . . . . . . . . . . . . . . . Piercing Weapon 1 | . . . . . . . . . . . . . . . . . 1 . . . . . . . Special Melee Weapon 3 | . . . 1 . . . . 1 . . . . . . . . . . . 1 . . . . Unidentified Prototypes 11 | . . . 2 . . . 3 . . . . . 1 . . 1 . . 1 . 1 1 1 . Parts Lost 33 | . 1 . 1 2 . 2 2 1 . . . . . . 1 3 . 3 4 1 9 1 . 2 Power 4 | . . . . . . . . . . . . . . . 1 . . 2 1 . . . . . Propulsion 4 | . . . . 1 . . . . . . . . . . . 1 . . . . 2 . . . Utility 15 | . . . 1 1 . 1 1 . . . . . . . . 1 . 1 1 1 6 . . 1 Weapon 10 | . 1 . . . . 1 1 1 . . . . . . . 1 . . 2 . 1 1 . 1 Highest Loss Streak 6 | . 1 . 1 2 . 1 1 1 . . . . . . 1 2 . 1 2 1 6 1 . 1 To Critical Strikes 3 | . . . . . . . . . . . . . . . . 1 . . . . 2 . . . Average Backups 19 | 3 7 9 14 18 19 19 19 19 19 19 17 19 19 19 21 22 22 22 21 22 21 22 24 24 Power 1 | . . . . 1 2 2 2 1 1 . . 1 1 1 . 1 1 . . 1 1 . . 1 Propulsion 2 | . 2 3 4 6 5 5 2 2 2 3 3 2 1 1 1 . 1 2 2 2 1 . . . Utility 6 | . 2 3 4 2 2 2 2 7 7 7 6 5 5 6 8 9 9 8 8 9 8 10 9 7 Weapon 6 | . 2 3 4 6 7 6 8 5 6 5 5 6 7 7 7 6 7 7 6 5 6 7 11 11 Tool/Special . | . . . . . . . . . . . . . . . . . . . . . . . . . Unused Backups 77 | . 3 . 15 . . 1 21 6 . 3 2 4 4 . 1 . . 2 . . 2 . 1 12 Power 9 | . . . 1 . . . 4 2 . . . 1 1 . . . . . . . . . . . Propulsion 10 | . . . 3 . . 1 3 . . 1 . 1 . . . . . . . . . . . 1 Utility 25 | . 1 . 6 . . . 7 1 . . 1 . 1 . 1 . . 2 . . 2 . . 3 Weapon 32 | . 2 . 5 . . . 7 2 . 2 1 2 2 . . . . . . . . . 1 8 Tool/Special 1 | . . . . . . . . 1 . . . . . . . . . . . . . . . . Average Slot Usage (%) 89 | . 92 100 99 99 100 99 98 90 98 94 91 86 85 81 76 81 83 81 76 80 83 81 86 89 Engine 4 | . 14 14 11 11 11 11 9 9 7 7 7 1 . . . . . 2 . . . . . . Reactor 3 | . . . . . . . . . . . . 5 5 6 7 11 11 7 5 4 . 14 13 12 Treads 21 | . 28 28 32 32 33 33 27 27 23 17 15 15 19 14 13 16 19 22 19 17 15 14 13 16 Device 10 | . 1 . 8 . . 1 8 . 9 14 9 14 13 12 8 11 14 7 11 17 12 11 18 22 Storage 7 | . 14 14 11 11 11 11 9 9 7 7 7 7 6 6 5 5 5 5 5 5 5 4 4 4 Processor 8 | . . . . . . . . 9 14 15 15 15 13 13 11 11 11 11 10 10 10 13 15 11 Hackware 2 | . . . . . . . 6 . 4 . 4 . 1 . 4 5 1 2 3 1 4 4 3 9 Protection 9 | . 5 14 12 21 22 19 10 9 7 6 7 6 10 13 8 5 5 5 5 5 7 3 4 1 Energy Gun 2 | . 20 14 6 . . 3 1 . . . . 6 4 1 3 2 . . . . . . . . Ballistic Gun 6 | . 6 . 6 . . . 24 26 20 21 22 5 . . . . . . . 1 . . . . Ballistic Cannon 6 | . . . 8 22 16 18 . . . . . 4 6 6 5 5 9 10 8 6 12 9 8 3 Peak Build Rating 183 | 7 9 9 17 18 19 22 37 37 44 67 65 81 92 97 109 112 115 119 133 138 133 154 175 183 Average Rating 75 | 6 7 9 15 16 17 19 31 36 42 50 64 75 89 94 101 107 110 111 124 132 128 143 168 173 On Entrance 69 | . 7 9 9 16 17 19 22 37 37 44 65 64 79 90 96 107 112 112 119 127 132 107 154 162 Avg Prop Armor Cover (%) 6 | . . . . . . . 6 . . . . . . . . . . . . . . . 6 . Naked Turns . | . . . . . . . . . . . . . . . . . . . . . . . . . Heaviest Build 208 | 14 21 21 65 69 69 69 77 78 71 92 90 145 150 141 170 170 167 167 172 174 179 197 208 204 Greatest Support 230 | 40 40 40 60 60 60 60 66 66 66 97 97 97 125 150 173 173 173 178 207 230 230 225 210 200 Greatest Overweight (x) 1 | . . . 1 1 1 1 1 1 1 1 . 1 1 1 1 . 1 1 . . . . 1 1 Average Overweight (x) . | . . . . 1 1 1 . . . . . . 1 . . . . . . . . . . . Largest Inventory Capacity 25 | 8 10 10 20 20 20 20 20 20 20 20 20 25 25 25 25 25 25 25 25 25 25 25 25 25 Average Capacity 21 | 7 9 10 16 20 20 20 20 20 20 20 20 23 25 25 25 25 25 25 25 25 25 25 25 25 Most Carried 25 | 6 10 10 20 20 20 20 20 20 20 20 20 25 25 25 25 25 25 25 25 25 25 25 25 25 Average Carried 21 | 4 8 10 14 18 19 19 19 19 19 19 19 22 24 24 24 24 24 24 24 24 23 22 24 24 Final Capacity 25 | 8 10 10 20 20 20 20 20 20 20 20 20 25 25 25 25 25 25 25 25 25 25 25 25 25 Final Carried 25 | 6 10 10 19 18 20 18 20 19 19 20 20 25 25 25 25 24 24 25 23 25 21 24 25 24 Class Distribution -------------------- 22% | Trapper-Tank 18% | Mutant 11% | Tank 10% | Botlord-Tank 6% | Scavenger-Mutant 6% | Skirmisher 5% | Trapper-Gunner 4% | Scavenger-Skirmisher 3% | Trapper-Mutant 3% | Botlord-Gunner 3% | Gunner Dominant Class ---------------- Mutant | -10/Materials Mutant | -10/Mines Scavenger-Mutant | -9/Materials Mutant | -9/Mines Mutant | -9/Exiles Mutant | -8/Mines Scavenger-Skirmisher | -8/Materials Skirmisher | -8/Garrison Gunner | -7/Factory Tank | -7/Garrison Tank | -7/Factory Tank | -7/Garrison Trapper-Tank | -6/Factory Trapper-Tank | -6/Garrison Trapper-Tank | -5/Factory Trapper-Tank | -5/Garrison Trapper-Tank | -5/Factory Trapper-Tank | -5/Garrison Trapper-Gunner | -4/Factory Botlord-Gunner | -4/Garrison Botlord-Tank | -4/Factory Botlord-Tank | -3/Research Botlord-Tank | -2/Research Botlord-Tank | -1/Access Resources | -11 -10 -10 -9 -9 -9 -8 -8 -8 -7 -7 -7 -7 -6 -6 -5 -5 -5 -5 -4 -4 -4 -3 -2 -1 ----------- Run | Yrd Mat Min Mat Min Exi Min Mat Gar Fac Gar Fac Gar Fac Gar Fac Gar Fac Gar Fac Gar Fac Res Res Acc Matter Collected 17637 | 254 165 36 737 239 . 60 1620 619 157 1259 351 664 1177 397 1142 712 997 1550 628 1196 1883 681 321 792 Remotely 39 | . 39 . . . . . . . . . . . . . . . . . . . . . . . Salvage Created 17903 | 143 331 27 1340 135 . 113 1702 738 211 1260 244 1179 1109 270 1011 672 679 1067 899 730 1651 308 173 1911 Parts 887 | 11 20 6 89 11 . 10 97 48 14 59 19 53 45 8 36 35 33 51 45 37 52 1 6 101 Haulers Intercepted 18 | . 2 . 5 . . . 6 . . . . . 1 . 1 . 1 . . . 2 . . . Recyclers Shooed 14 | 2 . 1 2 1 . . 1 . . . . . 1 . . . . . . . 3 1 . 2 Parts Field Recycled . | . . . . . . . . . . . . . . . . . . . . . . . . . Retrieved Matter . | . . . . . . . . . . . . . . . . . . . . . . . . . Parts Self-Destructed . | . . . . . . . . . . . . . . . . . . . . . . . . . Prevented . | . . . . . . . . . . . . . . . . . . . . . . . . . Parts Restored . | . . . . . . . . . . . . . . . . . . . . . . . . . Kills | -11 -10 -10 -9 -9 -9 -8 -8 -8 -7 -7 -7 -7 -6 -6 -5 -5 -5 -5 -4 -4 -4 -3 -2 -1 ------- Run | Yrd Mat Min Mat Min Exi Min Mat Gar Fac Gar Fac Gar Fac Gar Fac Gar Fac Gar Fac Gar Fac Res Res Acc Combat Hostiles Destroyed 347 | . 7 2 28 13 . 8 29 14 4 21 5 21 17 9 20 25 17 19 19 15 20 3 3 28 Melee 5 | . . . . . . . . . . . . 1 1 . . 1 . . . 1 . 1 . . Guns 110 | . 7 2 18 . . . 23 14 4 19 5 13 . . 1 4 . . . . . . . . Cannons 167 | . . . 9 13 . 3 . . . . . 7 10 9 14 12 13 19 9 10 12 1 3 23 AOE 56 | . . . . . . 5 6 . . 2 . . 6 . 5 8 4 . 6 3 8 . . 3 Classes Destroyed 25 | 2 4 . 4 2 . . 4 3 . 1 1 . . . . 1 . 1 . . 2 . . . Worker 24 | . . . 3 1 . 1 3 . . . 2 . . . 1 . 1 . 3 . 3 . . 6 Builder 13 | . . . . . . . 3 . . . . . 1 . 1 . . . . . 5 . . 3 Tunneler 6 | 4 . 1 . 1 . . . . . . . . . . . . . . . . . . . . Hauler 18 | . 2 . 5 . . . 6 . . . . . 1 . 1 . 1 . . . 2 . . . Recycler 20 | 1 . . 1 1 . . 2 . . . . . 5 . 2 . . . . . 7 1 . . Mechanic 1 | . . . . . . . . . . . . . . . . . . . . . 1 . . . Operator 4 | . 1 . 1 . . . . . . . . . . . . . 1 . 1 . . . . . Watcher 8 | . . . . . . . 2 . . . . . . . 2 . . . 1 . 1 . . 2 Swarmer 67 | . 3 2 5 1 . 3 4 . . 3 . 1 7 . 5 13 3 4 5 3 3 . . 2 Cutter 1 | . . . . . . . . . . . . . . . . . . 1 . . . . . . Saboteur 1 | . . . . . . . . . . . . . . . . . . . . . 1 . . . Grunt 117 | . 4 . 14 . . 5 18 7 3 12 1 11 1 8 3 3 6 5 1 3 5 1 3 3 Brawler 8 | . . . . . . . . . . 1 . . . . 1 1 1 . . . 3 . . 1 Duelist 3 | . . . 1 . . . . . . . . . . 1 . . . . . . 1 . . . Sentry 45 | . . . 8 . . . 5 3 1 4 . 5 2 . 2 4 1 3 2 1 1 2 . 1 Demolisher 1 | . . . . 1 . . . . . . . . . . . . . . . . . . . . Specialist 11 | . . . . . . . 1 . . 1 . . . . . . . 1 2 4 . . . 2 Hunter 26 | . . . . . . . . . . . 1 2 . . 3 . . 2 7 4 . . . 7 Programmer 50 | . . . . . . . . 3 . . 3 2 7 . 6 2 6 4 1 . 5 . . 11 Heavy 3 | . . . . . . . 1 . . . . . . . . . . . 1 . . . . 1 Behemoth 1 | . . . . . . . . 1 . . . . . . . . . . . . . . . . Striker 2 | . . . . . . . . . . . . . . . . 2 . . . . . . . . Botcube 1 | . . . . . . . . 1 . . . . . . . . . . . . . . . . Zionite 1 | . . . 1 . . . . . . . . . . . . . . . . . . . . . Assembled 11 | . . . . 11 . . . . . . . . . . . . . . . . . . . . Best Kill Streak 11 | 3 3 2 8 7 . 6 7 3 2 4 2 5 6 3 6 5 4 3 6 3 11 2 2 7 Combat Bots Only 8 | . 3 2 8 7 . 5 5 3 2 4 1 5 4 3 5 5 3 3 5 3 4 1 2 6 Max Kills in Single Turn 5 | 1 1 1 2 1 . 2 3 1 1 2 1 2 2 1 4 3 2 2 5 3 5 1 1 2 Gunslinging 1 | . . . . . . . 1 . . 1 . 1 . . . . . . . . . . . . Exploded 5 | . . . . . . 2 2 . . 2 . . 2 . 3 3 2 . 5 3 3 . . 2 Melee 1 | . . . . . . . . . . . . 1 1 . . 1 . . . 1 . 1 . . Uniques/NPCs Destroyed 1 | . . . . . . . . . . . . . . . . . . . . . 1 . . . BL-1NK (-4/Factory) Combat | -11 -10 -10 -9 -9 -9 -8 -8 -8 -7 -7 -7 -7 -6 -6 -5 -5 -5 -5 -4 -4 -4 -3 -2 -1 -------- Run | Yrd Mat Min Mat Min Exi Min Mat Gar Fac Gar Fac Gar Fac Gar Fac Gar Fac Gar Fac Gar Fac Res Res Acc Hostile Shots Fired 1734 | . 52 4 143 31 . 14 99 47 62 107 43 112 54 17 115 60 45 111 99 137 202 16 14 150 Missed 535 | . 21 1 51 8 . 6 27 13 13 31 13 36 18 6 34 10 17 30 36 44 64 2 6 48 Hits 1199 | . 31 3 92 23 . 8 72 34 49 76 30 76 36 11 81 50 28 81 63 93 138 14 8 102 Melee 22 | . . . 6 1 . . . . . . . 1 . 1 . 11 1 1 . . . . . . Projectile 1177 | . 31 3 86 22 . 8 72 34 49 76 30 75 36 10 81 39 27 80 63 93 138 14 8 102 AOE 16 | . . . . 9 . . . . . . . . . . . . . 3 1 3 . . . . Critical Strikes 50 | . 1 . 3 . . 2 3 3 3 . . . 1 1 5 7 2 . 2 4 10 . . 3 Actively Blocked 21 | . . . . . . . . . . . . . . . . 5 2 . . 3 8 . . 3 Part Disruptions 3 | . . . . 1 . . 1 . . . . . . . . . . . 1 . . . . . Damage Taken 19194 | . 311 21 1280 593 . 123 1461 723 350 570 353 626 389 208 1601 626 655 1471 1441 1257 2951 428 108 1648 Core 1445 | . 37 . 195 101 . . 164 30 31 15 25 35 27 . 135 111 52 124 57 67 120 20 . 99 Absorbed by Shields 3561 | . . . . . . . . 10 160 301 24 420 165 12 198 578 . 415 . 304 . . 112 862 Reduced by Siege Mode 407 | . . . . . . . . . . . . . . 24 90 . . . 27 68 123 7 . 68 Redirected to Shielding 163 | . . 6 7 . . . . . . . . . . . 120 . . . . . 30 . . . Ignored by Resistances 404 | . . . . . . . 85 . . 3 47 39 . . . 209 21 . . . . . . . Regen/Repaired (Parts) 1299 | . . . 58 . . . 304 . 62 . . . 452 . . . . . 343 . . . . 80 Core Remaining (%) 80 | 100 . 85 . . . 26 . 64 . . . 84 . 96 . . . 57 . . 78 98 100 93 Volleys Fired 1121 | 17 33 3 110 30 . 14 82 39 15 52 20 81 41 39 69 49 33 63 58 56 77 11 13 116 Largest 3 | 2 2 2 2 2 . 2 3 3 3 3 3 3 2 2 2 2 2 2 2 2 3 3 3 3 Hottest 240 | 70 110 110 110 66 . 89 106 75 75 93 93 130 90 90 150 150 128 128 151 151 222 222 222 240 Shots Fired 2128 | 34 66 6 217 59 . 24 242 109 43 142 46 127 48 42 103 81 58 105 75 74 186 23 22 196 Gun 1018 | 34 63 3 170 . . 4 237 109 42 139 39 97 7 4 34 36 . . . . . . . . Cannon 935 | . 3 3 47 59 . 16 . . . . . 26 33 20 50 40 50 91 64 70 173 21 15 154 Launcher 36 | . . . . . . 4 5 . 1 3 . . 4 . 2 3 3 . 1 1 3 . . 6 Special 139 | . . . . . . . . . . . 7 4 4 18 17 2 5 14 10 3 10 2 7 36 Kinetic 1410 | 17 24 . 120 59 . 16 220 109 42 139 39 70 33 20 36 40 50 91 39 37 153 12 12 32 Thermal 485 | 17 42 6 97 . . 4 17 . . . . 53 7 4 48 36 . . . . 20 9 3 122 Explosive 36 | . . . . . . 4 5 . 1 3 . . 4 . 2 3 3 . 1 1 3 . . 6 Electromagnetic 58 | . . . . . . . . . . . . . . . . . . . 25 33 . . . . Robot Hit Streak 46 | 4 13 2 11 4 . 3 11 18 9 29 7 19 9 45 46 11 7 12 14 13 20 23 12 24 Robot Miss Streak 6 | 3 3 2 4 4 . 6 3 4 1 3 2 4 3 . 2 2 3 3 2 2 3 1 2 4 Penetration Max 1 | . . . . . . . . . . . . 1 . . 1 . . 1 . . 1 . . . Secondary Targets 17 | . . . 1 . . . 6 3 . 3 . 4 . . . . . . . . . . . . Max Gunslinging Chain 1 | . . . 1 . . . 1 1 . 1 . 1 . . . . . . . . . . . . Shots Hit Robots 1476 | 18 42 3 153 29 4 9 169 80 62 96 31 103 39 36 62 50 37 69 51 52 127 18 15 121 Core Hits 689 | 6 18 3 53 14 . 13 79 37 10 50 9 52 26 10 27 30 21 28 24 27 83 5 6 58 Critical Kills 13 | . . . 1 . . . . . . 3 2 2 . . 1 1 . . . . . 1 . 2 Critical Parts Destroyed 4 | . . . . . . . . . . . 1 . 2 . . 1 . . . . . . . . Critical Strikes 92 | . 2 . 7 1 . 1 1 . . 4 3 6 5 1 9 7 4 7 2 6 18 2 1 5 Burn 9 | . 2 . 5 . . . 1 . . . . . 1 . . . . . . . . . . . Meltdown 3 | . . . . . . . . . . . . . . . . . . . . . . 1 . 2 Destroy 13 | . . . 1 . . . . . . 4 3 2 . . 1 2 . . . . . . . . Blast 60 | . . . 1 1 . 1 . . . . . 4 2 1 8 5 4 5 1 4 18 1 1 3 Corrupt 3 | . . . . . . . . . . . . . . . . . . . 1 2 . . . . Smash 2 | . . . . . . . . . . . . . 2 . . . . . . . . . . . Impale 2 | . . . . . . . . . . . . . . . . . . 2 . . . . . . Melee Attacks 104 | . . . . 1 4 . 8 8 28 4 3 3 6 . 5 3 4 16 . 9 . 2 . . Impact 25 | . . . . . . . 7 6 . 4 1 3 3 . . 1 . . . . . . . . Slashing 1 | . . . . 1 . . . . . . . . . . . . . . . . . . . . Piercing 20 | . . . . . . . . . . . . . . . . . . 16 . 2 . 2 . . Sneak Attacks 49 | . . . . . 4 . 1 . 26 . 2 . 3 . 5 1 4 . . 1 . 2 . . Combat Hostiles . | . . . . . . . . . . . . . . . . . . . . . . . . . Follow-up Attacks . | . . . . . . . . . . . . . . . . . . . . . . . . . Damage Inflicted 52182 | 236 581 55 2556 627 . 637 3730 1408 638 2241 455 3171 2883 1321 3507 3383 2429 4267 3172 2202 6906 693 285 4799 Guns 12235 | 236 517 25 1793 . . 14 2881 1367 629 1844 423 1671 94 20 313 408 . . . . . . . . Cannons 30035 | . 53 18 683 617 . 168 . . . . . 1396 2119 1301 2526 2255 2014 3418 2475 1842 4562 542 285 3761 Explosions 7569 | . . . . . . 411 701 . . 323 . . 495 . 513 650 384 . 674 278 2312 . . 828 Melee 1421 | . . . . . . . . 34 . 74 . 84 126 . . 70 . 849 . 82 . 102 . . Ramming 922 | . 11 12 80 10 . 44 148 7 9 . 32 20 49 . 155 . 31 . 23 . 32 49 . 210 Kinetic 33824 | 123 228 . 1494 617 . 168 2718 1367 629 1844 423 2216 2119 1301 2526 2255 2014 3418 1680 1400 3886 372 244 782 Thermal 8260 | 113 342 43 982 . . 14 163 . . . . 851 94 20 313 408 156 . 361 62 1148 170 41 2979 Explosive 6518 | . . . . . . 411 701 . . 323 . . 495 . 513 650 228 . 313 216 1840 . . 828 Electromagnetic 1237 | . . . . . . . . . . . . . . . . . . . 795 442 . . . . Impact 388 | . . . . . . . . 34 . 74 . 84 126 . . 70 . . . . . . . . Slashing . | . . . . . . . . . . . . . . . . . . . . . . . . . Piercing 1033 | . . . . . . . . . . . . . . . . . . 849 . 82 . 102 . . Highest Corruption 7 | . 1 1 . . . . 6 6 . . . 3 1 1 2 3 2 7 2 2 5 . . . Average Corruption 3 | . 1 1 . . . . 5 6 . . . 1 1 1 1 2 1 3 1 2 2 . . . Corruption Purged 5 | . . . . . . . . . . . . . . . 2 3 . . . . . . . . Corruption Blocked 4 | . . . . . . . . . . . . . . . . . . . . . . . . 4 Effects 274 | . 6 5 . . . . 79 43 . . . 10 . 8 7 8 6 43 3 31 25 . . . Message Errors 58 | . 2 1 . . . . 16 5 . . . 2 . 1 2 3 . 6 1 13 6 . . . Matter Fused 58 | . 1 2 . . . . 18 9 . . . 2 . 1 1 1 1 8 1 5 8 . . . Heat Flow Errors 37 | . . 1 . . . . 9 6 . . . 1 . 1 2 . 3 7 . 2 5 . . . Energy Discharges 45 | . 1 . . . . . 10 9 . . . 1 . 4 1 1 1 8 . 6 3 . . . Parts Rejected 1 | . . . . . . . . . . . . . . . . . . . . . 1 . . . Parts Fused 4 | . 1 . . . . . 1 2 . . . . . . . . . . . . . . . . Data Loss (minor) 32 | . . 1 . . . . 10 4 . . . 2 . . 1 2 . 5 1 4 2 . . . Data Loss (major) 13 | . 1 . . . . . 4 4 . . . . . . . . 1 3 . . . . . . Misfires 18 | . . . . . . . 7 2 . . . 2 . 1 . 1 . 4 . 1 . . . . Alerts 1 | . . . . . . . 1 . . . . . . . . . . . . . . . . . Weapon Failures 7 | . . . . . . . 3 2 . . . . . . . . . 2 . . . . . . Overload Shots 1 | . . . . . . . . . . . . 1 . . . . . . . . . . . . Overflow Damage 2747 | . . . . 17 . 14 14 . . 98 . 196 391 91 407 189 201 510 222 102 190 24 . 81 Projectiles 2199 | . . . . 17 . . . . . . . 140 301 91 313 127 163 510 222 102 150 22 . 41 Explosions 289 | . . . . . . 14 14 . . 47 . . 18 . 52 62 38 . . . 40 . . 4 Melee 259 | . . . . . . . . . . 51 . 56 72 . 42 . . . . . . 2 . 36 Knockbacks 101 | . . 1 2 4 . 1 . 1 . . . 6 8 4 9 9 8 14 5 6 14 1 3 5 Impact 11 | . . 1 . . . 1 . 1 . . . 1 1 . 3 . 1 . 1 . . 1 . . Kinetic 86 | . . . 2 4 . . . . . . . 5 6 4 5 9 6 14 4 6 13 . 3 5 Secondary 4 | . . . . . . . . . . . . . 1 . 1 . 1 . . . 1 . . . Self-Inflicted Damage 174 | . . . . . . . . . . . . . 28 . . . 52 . 53 . 41 . . . Shots 4 | . . . . . . . . . . . . . 1 . . . 1 . 1 . 1 . . . Rammed 75 | . 6 3 13 2 . 4 12 1 2 . 4 2 4 . 7 . 2 . 1 . 2 3 . 7 Targets Rammed 87 | . 6 4 15 4 . 4 14 1 2 . 6 2 4 . 7 . 2 . 2 . 2 3 . 9 Kicked . | . . . . . . . . . . . . . . . . . . . . . . . . . Crushed 12 | . . 1 2 2 . . 2 . . . 2 . . . . . . . 1 . . . . 2 Highest Temperature 401 | 45 150 159 315 104 . 179 219 278 135 182 124 206 118 164 324 4 238 350 139 228 401 261 208 325 Average Temperature 63 | 17 43 78 58 33 . 66 38 90 52 51 48 67 29 23 79 2 40 107 54 59 91 101 118 117 Received Heat Transfer 3691 | . 114 . 462 40 . 108 432 231 94 154 18 186 14 102 201 43 117 257 177 352 465 72 24 28 Effects 3 | . . . 1 . . . . . . . . . . . . . . 2 . . . . . . Energy Bleed 2 | . . . . . . . . . . . . . . . . . . 2 . . . . . . Interference 1 | . . . 1 . . . . . . . . . . . . . . . . . . . . . Siege Activations 25 | . . . . . . . . . . . . . . 3 4 1 2 . 2 3 4 1 . 5 Total Turns 753 | . . . . . . . . . . . . . . 52 95 21 32 . 28 95 259 12 . 159 Longest Duration 221 | . . . . . . . . . . . . . . 20 63 21 24 . 21 73 221 12 . 58 Martial Activations . | . . . . . . . . . . . . . . . . . . . . . . . . . Shielding Activations . | . . . . . . . . . . . . . . . . . . . . . . . . . Robots Disrupted 1 | . . . . . . . . . . . . . . . . . . . . 1 . . . . Combat Hostiles 1 | . . . . . . . . . . . . . . . . . . . . 1 . . . . Robots Corrupted 10 | . . . . . . . . . . . . 1 1 . 2 . . . 4 1 . . . 1 Combat Hostiles 5 | . . . . . . . . . . . . . . . . . . . 4 1 . . . . Parts Fried 13 | . . . . . . . . . . 1 . . 2 . 3 . . . 4 2 . . . 1 Impact Corruptions 12 | . . . . . . . . . . 1 . 3 3 . 3 . . . . . . . . 2 Robots Melted 6 | . 1 . 2 . . . . . . . . . . . . . . . . . . 1 . 2 Combat Hostiles 4 | . . . 1 . . . . . . . . . . . . . . . . . . 1 . 2 Parts Melted 20 | 1 . . 6 . . . . . . . . 1 . . . . . . . . . . . 12 Heat Transferred 11717 | 333 1062 111 2923 . . 37 481 . . . . 1628 259 37 444 629 150 . 250 50 715 148 37 2423 Parts Sabotaged 1 | . . . . . . . . . . . . 1 . . . . . . . . . . . . Parts Stolen . | . . . . . . . . . . . . . . . . . . . . . . . . . Parts Stripped . | . . . . . . . . . . . . . . . . . . . . . . . . . Power Chain Reactions 3 | . . . . . . . . . . . . . . . . . . . 2 1 . . . . Alert | -11 -10 -10 -9 -9 -9 -8 -8 -8 -7 -7 -7 -7 -6 -6 -5 -5 -5 -5 -4 -4 -4 -3 -2 -1 ------- Run | Yrd Mat Min Mat Min Exi Min Mat Gar Fac Gar Fac Gar Fac Gar Fac Gar Fac Gar Fac Gar Fac Res Res Acc Maximum Alert Level 4 | . . . 2 1 . 1 2 4 2 3 2 3 2 2 1 3 2 3 2 4 4 2 1 4 Low Security (%) 36 | 100 100 100 45 82 . 94 36 . . . . . 69 21 77 . 63 9 3 7 . . 57 55 Level 1 27 | . . . 39 17 . 5 58 8 31 13 77 22 21 63 22 9 10 29 78 11 . . 42 17 Level 2 18 | . . . 15 . . . 5 15 68 56 22 45 8 15 . 22 26 28 17 38 14 100 . 3 Level 3 14 | . . . . . . . . 62 . 30 . 32 . . . 67 . 32 . 25 84 . . 8 Level 4 2 | . . . . . . . . 13 . . . . . . . . . . . 17 1 . . 14 Level 5 . | . . . . . . . . . . . . . . . . . . . . . . . . . High Security . | . . . . . . . . . . . . . . . . . . . . . . . . . Max Security . | . . . . . . . . . . . . . . . . . . . . . . . . . Peak Influence 1454 | 10 132 56 603 266 . 219 578 1170 613 1030 540 861 451 445 341 1061 667 908 600 1454 1241 625 256 1141 Initial 763 | . . 2 . 234 . . 65 370 613 231 540 223 451 126 233 238 556 104 477 193 763 625 256 73 Average 367 | 1 44 6 214 94 . 52 226 821 455 626 345 591 196 308 119 735 253 510 325 733 801 541 189 382 Influence Increases 16324 | 25 238 62 1194 199 . 407 1435 850 115 799 309 778 611 339 722 933 692 1156 693 1411 1193 99 165 1899 Destroy 0b10 Robot/C 8600 | . 140 40 720 100 . 260 920 480 80 420 160 480 340 180 400 520 360 580 380 660 400 60 80 840 Destroy 0b10 Robot/NC 640 | 25 15 5 55 15 . 15 95 . . 15 10 20 35 . 35 . 15 20 30 . 100 5 5 125 Destroy Leader 1482 | . 34 10 192 20 . 40 208 20 10 20 70 40 112 . 106 40 52 30 94 40 88 20 22 214 Allied During Kill 1051 | . . 7 41 12 . 30 87 37 . . 9 6 . . 4 44 17 102 12 259 49 . 26 309 Trap Triggered on 0b10 180 | . . . 30 . . . . . . 20 . . 50 . 30 . 20 . . . 30 . . . Successful Hack 373 | . 18 . 31 . . . 10 30 3 28 28 14 41 14 22 7 32 . 5 16 . . 26 48 Select Force Hacks 60 | . . . 30 . . . . . . . . . . . 30 . . . . . . . . . Disable Machine 630 | . . . . . . 30 . . . . 30 60 . 30 . 15 60 15 45 . 300 . . 45 Anti-Garrison Action 1550 | . . . . . . . . 250 . 200 . 150 . 100 . 200 . 300 . 350 . . . . Destroy Structure 1263 | . 1 . 5 7 . 32 40 3 7 36 2 8 33 . 80 77 136 79 82 71 226 14 6 318 Partial Spotted 30 | . . . . . . . . . . . . . . . . . . . 15 15 . . . . Lose Combat Pursuer 465 | . 30 . 90 45 . . 75 30 15 60 . . . 15 15 30 . 30 30 . . . . . Influence Decreases 15224 | 25 231 69 593 800 . 240 1032 250 955 99 1020 236 1291 75 826 213 1604 395 1326 234 1455 835 498 922 Entered New Map 5271 | . . 5 . 367 . . 102 200 557 99 490 96 410 55 212 103 505 45 433 84 691 567 200 50 Time Decay 6933 | 25 221 64 503 413 . 220 740 . 398 . 510 . 721 . 564 . 514 . 398 . 534 238 278 592 Lost Part 320 | . 10 . 10 20 . 20 20 10 . . . . . . . 30 . 30 40 10 90 10 . 20 Lost Ally 1350 | . . . 80 . . . 20 40 . . 20 140 10 20 50 80 60 320 80 140 140 20 20 110 Purge Threat 1350 | . . . . . . . 150 . . . . . 150 . . . 525 . 375 . . . . 150 Squads Dispatched 73 | . 2 . 5 . . . 6 . 2 . 6 . 7 . 9 . 8 . 6 . 10 . 2 10 Investigation 16 | . 1 . 3 . . . 1 . . . 2 . . . 3 . 2 . 2 . . . 1 1 Extermination 22 | . . . . . . . . . 1 . 2 . 7 . 2 . 3 . 2 . 2 . . 3 Reinforcement 22 | . 1 . 1 . . . 5 . . . 2 . . . 2 . 1 . 2 . 3 . . 5 Assault 6 | . . . 1 . . . . . . . . . . . 2 . . . . . 2 . . 1 Garrison 7 | . . . . . . . . . 1 . . . . . . . 2 . . . 3 . 1 . Intercept . | . . . . . . . . . . . . . . . . . . . . . . . . . Searches Triggered . | . . . . . . . . . . . . . . . . . . . . . . . . . Unchained Authorized 1 | . . . . . . . . . . . . . . . . . . . . . 1 . . . Construction Impeded 3 | . . . . . . . . . . . . . . . 1 . . . . . . . . 2 Haulers Reinforced 1 | . . . . . . . . . . . . . . . 1 . . . . . . . . . Active Scanning Responses . | . . . . . . . . . . . . . . . . . . . . . . . . . Cargo Convoy Interrupts 1 | . . . . . . . . . . . . . . . . . . . . . 1 . . . Alert ID Control Effect 30 | . . . . . . . . . . . . . . . 2 3 1 4 . 2 6 1 3 8 Stealth | -11 -10 -10 -9 -9 -9 -8 -8 -8 -7 -7 -7 -7 -6 -6 -5 -5 -5 -5 -4 -4 -4 -3 -2 -1 --------- Run | Yrd Mat Min Mat Min Exi Min Mat Gar Fac Gar Fac Gar Fac Gar Fac Gar Fac Gar Fac Gar Fac Res Res Acc Distress Signals 31 | . 1 1 5 . . . 9 . 1 . 3 2 . . 4 . 1 . . . 2 . . 2 Communications Jammed 69 | . . . . . . . . . . . . . 5 . 3 . . . 11 . . . . 50 Distress Signals 64 | . . . . . . . . . . . . . 5 . 3 . . . 11 . . . . 45 Times Spotted 627 | . 19 3 52 24 . 12 79 24 6 24 15 27 28 12 31 26 24 40 31 32 52 4 7 55 Peak Tracking Total 17 | . 4 1 7 6 . 7 6 3 3 4 3 5 4 3 8 8 4 6 5 4 17 1 2 7 Tactical Retreats 23 | . 2 . 5 1 . . 5 1 1 1 . . . 1 1 1 . 2 2 . . . . . Traps | -11 -10 -10 -9 -9 -9 -8 -8 -8 -7 -7 -7 -7 -6 -6 -5 -5 -5 -5 -4 -4 -4 -3 -2 -1 ------- Run | Yrd Mat Min Mat Min Exi Min Mat Gar Fac Gar Fac Gar Fac Gar Fac Gar Fac Gar Fac Gar Fac Res Res Acc Traps Triggered 43 | . . . 1 . . . 2 11 3 2 1 6 2 2 . 3 1 3 . 3 2 1 . . Indirectly . | . . . . . . . . . . . . . . . . . . . . . . . . . Trap Hack Attempts 338 | . . . 26 . . . . . . 127 . . 69 . . . 60 . . . 56 . . . Triggered 1 | . . . . . . . . . . 1 . . . . . . . . . . . . . . Disarmed 4 | . . . . . . . . . . 3 . . 1 . . . . . . . . . . . Reprogrammed 31 | . . . 6 . . . . . . 5 . . 9 . . . 5 . . . 6 . . . Reused 16 | . . . 3 . . . . . . 2 . . 5 . . . 1 . . . 5 . . . Traps Extracted 19 | . . . . . . . . . . 5 . . 9 . . . 1 . . . 4 . . . Installed 18 | . . . . . . . . . . 3 . . 10 . . . . . . . 5 . . . Triggered 18 | . . . 3 . . . . . . 2 . . 5 . 3 . 2 . . . 3 . . . Most Traps Carried 10 | . . . . . . . . . . 5 2 10 10 9 9 9 10 10 10 10 10 9 9 9 Machines | -11 -10 -10 -9 -9 -9 -8 -8 -8 -7 -7 -7 -7 -6 -6 -5 -5 -5 -5 -4 -4 -4 -3 -2 -1 ---------- Run | Yrd Mat Min Mat Min Exi Min Mat Gar Fac Gar Fac Gar Fac Gar Fac Gar Fac Gar Fac Gar Fac Res Res Acc Machines Disabled 62 | . . . . . . 2 . 2 . 1 2 7 . 4 . 4 4 6 3 4 20 . . 3 Max in Single Turn 4 | . . . . . . 1 . 1 . 1 1 1 . 1 . 1 3 1 1 1 4 . . 1 Garrison Access 5 | . . . . . . . . . . . . . . . 1 . . . . . . 1 1 2 Garrison Relay 15 | . . . . . . . . 2 . 1 . 1 . 2 . 2 . 4 . 3 . . . . Phase Generator 1 | . . . . . . . . 1 . . . . . . . . . . . . . . . . Machines Repaired . | . . . . . . . . . . . . . . . . . . . . . . . . . Machines Dismantled . | . . . . . . . . . . . . . . . . . . . . . . . . . Machines Sabotaged . | . . . . . . . . . . . . . . . . . . . . . . . . . Overloaded Fab Kills . | . . . . . . . . . . . . . . . . . . . . . . . . . Hacking | -11 -10 -10 -9 -9 -9 -8 -8 -8 -7 -7 -7 -7 -6 -6 -5 -5 -5 -5 -4 -4 -4 -3 -2 -1 --------- Run | Yrd Mat Min Mat Min Exi Min Mat Gar Fac Gar Fac Gar Fac Gar Fac Gar Fac Gar Fac Gar Fac Res Res Acc Machines Accessed 102 | . 2 . 13 . 2 . 14 3 5 2 9 1 15 1 11 2 2 . 2 1 3 3 3 8 Terminals 51 | . 2 . 9 . . . 8 3 1 2 3 1 6 1 6 2 1 . . 1 1 . . 4 Fabricators 9 | . . . . . . . . . 2 . 2 . 2 . 1 . . . . . 1 . . 1 Repair Stations 11 | . . . 1 . . . 2 . 1 . . . 4 . 1 . . . 1 . . . 1 . Recycling Units 4 | . . . 1 . . . 1 . . . . . . . . . . . . . 1 1 . . Scanalyzers 14 | . . . 2 . . . 2 . . . 3 . 2 . 2 . . . . . . 1 1 1 Garrison Access 11 | . . . . . . . 1 . 1 . 1 . 1 . 1 . 1 . 1 . . 1 1 2 Total Hacks 250 | . 5 . 38 . 2 . 46 5 10 3 24 1 35 1 29 2 5 . 9 1 7 4 8 15 Successful 121 | . 2 . 17 . 2 . 23 2 6 2 11 1 18 1 12 1 4 . 4 1 1 3 4 6 Failed 126 | . 3 . 20 . . . 23 3 4 1 12 . 17 . 16 1 1 . 5 . 6 1 4 9 Catastrophic 32 | . . . 5 . . . 3 1 1 . 3 . 6 . 5 . . . . . 1 1 2 4 Database Lockouts 3 | . . . 1 . . . . . . . 1 . . . 1 . . . . . . . . . Manual 86 | . 1 . 23 . 1 . 18 1 5 . 8 . 13 . 8 . 2 . 2 . 1 . 1 2 Terminals 118 | . 5 . 32 . . . 24 5 1 3 8 1 10 1 14 2 2 . . 1 2 . . 7 Fabricators 18 | . . . . . . . . . 3 . 4 . 3 . 3 . . . . . 3 . . 2 Repair Stations 38 | . . . 2 . . . 9 . 3 . . . 13 . 3 . . . 5 . . . 3 . Recycling Units 8 | . . . 1 . . . 4 . . . . . . . . . . . . . 2 1 . . Scanalyzers 38 | . . . 3 . . . 6 . . . 10 . 7 . 7 . . . . . . 1 2 2 Garrison Access 28 | . . . . . . . 3 . 3 . 2 . 2 . 2 . 3 . 4 . . 2 3 4 Terminal Hacks 36 | . 2 . 10 . 2 . 7 1 . 2 2 1 1 1 2 1 2 . . 1 . . . 1 Record 1 | . . . . . 1 . . . . . . . . . . . . . . . . . . . Robot Analysis 3 | . 1 . 2 . . . . . . . . . . . . . . . . . . . . . Prototype ID Bank 2 | . . . 1 . . . 1 . . . . . . . . . . . . . . . . . Open Door 2 | . . . . . . . . . . . . . . . . 1 . . . . . . . 1 Branch Access Points 2 | . . . 2 . . . . . . . . . . . . . . . . . . . . . Emergency Access Points 2 | . . . . . . . . . . 1 . 1 . . . . . . . . . . . . Scanalyzer Index 2 | . . . . . . . 1 . . . 1 . . . . . . . . . . . . . Unreport Threat 2 | . . . . . . . 1 . . . . . . . . . 1 . . . . . . . Locate Traps 6 | . 1 . 2 . . . 2 . . . . . . . . . 1 . . . . . . . Registered Components 1 | . . . 1 . . . . . . . . . . . . . . . . . . . . . Zone Layout 8 | . . . 2 . . . 2 . . . 1 . 1 . 2 . . . . . . . . . Garrison Registry 3 | . . . . . . . . 1 . 1 . . . 1 . . . . . . . . . . Security Stations 1 | . . . . . . . . . . . . . . . . . . . . 1 . . . . Proto ID Catalog 1 | . . . . . 1 . . . . . . . . . . . . . . . . . . . Fabricator Hacks 5 | . . . . . . . . . 1 . 1 . 1 . 1 . . . . . 1 . . . Network Status 5 | . . . . . . . . . 1 . 1 . 1 . 1 . . . . . 1 . . . Repair Station Hacks 22 | . . . 2 . . . 8 . 2 . . . 6 . 1 . . . 2 . . . 1 . Scan Component 12 | . . . 1 . . . 4 . 1 . . . 3 . 1 . . . 1 . . . 1 . Repair 10 | . . . 1 . . . 4 . 1 . . . 3 . . . . . 1 . . . . . Recycling Unit Hacks 1 | . . . . . . . . . . . . . . . . . . . . . . 1 . . Retrieve Components 1 | . . . . . . . . . . . . . . . . . . . . . . 1 . . Scanalyzer 22 | . . . 2 . . . 5 . . . 5 . 5 . 3 . . . . . . . 1 1 Insert Component 5 | . . . 1 . . . . . . . 2 . 1 . 1 . . . . . . . . . Analyze 5 | . . . 1 . . . . . . . 1 . 2 . 1 . . . . . . . . . Retrieve Study 12 | . . . . . . . 5 . . . 2 . 2 . 1 . . . . . . . 1 1 Garrison Access Hacks 16 | . . . . . . . 1 . 1 . 1 . 1 . 1 . 1 . 2 . . 2 2 4 Unlock Access 7 | . . . . . . . 1 . 1 . 1 . 1 . 1 . 1 . 1 . . . . . Seal Access 4 | . . . . . . . . . . . . . . . . . . . . . . 1 1 2 Coupler Status 5 | . . . . . . . . . . . . . . . . . . . 1 . . 1 1 2 Unauthorized Hacks 19 | . . . 3 . . . 2 1 2 . 2 . 4 . 4 . 1 . . . . . . . Terminals 5 | . . . 1 . . . 1 1 . . . . 1 . 1 . . . . . . . . . Assimilate 1 | . . . . . . . . . . . . . 1 . . . . . . . . . . . Botnet 3 | . . . 1 . . . 1 . . . . . . . 1 . . . . . . . . . Disrupt 1 | . . . . . . . . 1 . . . . . . . . . . . . . . . . Fabricators 6 | . . . . . . . . . 2 . 1 . 2 . 1 . . . . . . . . . Liberate 3 | . . . . . . . . . 1 . 1 . 1 . . . . . . . . . . . Haulers 3 | . . . . . . . . . 1 . . . 1 . 1 . . . . . . . . . Repair Stations 1 | . . . . . . . . . . . . . 1 . . . . . . . . . . . Mechanics 1 | . . . . . . . . . . . . . 1 . . . . . . . . . . . Recycling Units 2 | . . . 1 . . . 1 . . . . . . . . . . . . . . . . . Mask 2 | . . . 1 . . . 1 . . . . . . . . . . . . . . . . . Scanalyzers 2 | . . . 1 . . . . . . . . . . . 1 . . . . . . . . . Extract 2 | . . . 1 . . . . . . . . . . . 1 . . . . . . . . . Garrison Access 3 | . . . . . . . . . . . 1 . . . 1 . 1 . . . . . . . Reprogram 3 | . . . . . . . . . . . 1 . . . 1 . 1 . . . . . . . Data Cores Recovered 1 | . . . . . . . . . . . . . . . . . . . 1 . . . . . Used . | . . . . . . . . . . . . . . . . . . . . . . . . . Hacking Detections 82 | . 2 . 8 . . . 10 3 4 2 6 . 14 . 11 1 2 . 2 . 3 3 3 8 Full Trace Events 13 | . 1 . 2 . . . 1 1 . 1 1 . . . 1 . 1 . 2 . . . 1 1 Feedback Events 2 | . 1 . . . . . . . . . . . . . . . 1 . . . . . . . Corruption 2 | . 1 . . . . . . . . . . . . . . . 1 . . . . . . . Feedback Blocked . | . . . . . . . . . . . . . . . . . . . . . . . . . Robot Schematics Acquired . | . . . . . . . . . . . . . . . . . . . . . . . . . Robots Built . | . . . . . . . . . . . . . . . . . . . . . . . . . Authchips . | . . . . . . . . . . . . . . . . . . . . . . . . . Time . | . . . . . . . . . . . . . . . . . . . . . . . . . Total Robot Build Rating . | . . . . . . . . . . . . . . . . . . . . . . . . . Part Schematics Acquired 11 | . . . 4 . . . . . . . 1 . 1 . 5 . . . . . . . . . Parts Built . | . . . . . . . . . . . . . . . . . . . . . . . . . Authchips . | . . . . . . . . . . . . . . . . . . . . . . . . . Time . | . . . . . . . . . . . . . . . . . . . . . . . . . Total Part Build Rating . | . . . . . . . . . . . . . . . . . . . . . . . . . Part Studies Acquired 11 | . . . . . . . 5 . . . 1 . 2 . 1 . . . . . . . 1 1 Parts Repaired 10 | . . . 1 . . . 4 . 1 . . . 3 . . . . . 1 . . . . . Time 421 | . . . 26 . . . 140 . 38 . . . 149 . . . . . 68 . . . . . Parts Recycled . | . . . . . . . . . . . . . . . . . . . . . . . . . Recycled Matter . | . . . . . . . . . . . . . . . . . . . . . . . . . Retrieved Matter . | . . . . . . . . . . . . . . . . . . . . . . . . . Retrieved Components 1 | . . . . . . . . . . . . . . . . . . . . . . 1 . . Parts Scanalyzed 4 | . . . 1 . . . . . . . 1 . 1 . 1 . . . . . . . . . Part Schematics Acquired 4 | . . . 1 . . . . . . . 1 . 1 . 1 . . . . . . . . . Parts Damaged 1 | . . . . . . . . . . . 1 . . . . . . . . . . . . . Bothacking | -11 -10 -10 -9 -9 -9 -8 -8 -8 -7 -7 -7 -7 -6 -6 -5 -5 -5 -5 -4 -4 -4 -3 -2 -1 ------------ Run | Yrd Mat Min Mat Min Exi Min Mat Gar Fac Gar Fac Gar Fac Gar Fac Gar Fac Gar Fac Gar Fac Res Res Acc Used RIF Installer 9 | . . . . . . . . 2 . 1 . 1 . 1 . 1 . 2 . 1 . . . . Coupler Efficiency 3 | . . . . . . . . . . . . . . . . . . 2 . 1 . . . . Signal Jammer 1 | . . . . . . . . . . . . 1 . . . . . . . . . . . . Zone Cloak 1 | . . . . . . . . 1 . . . . . . . . . . . . . . . . Alert ID Control 1 | . . . . . . . . . . . . . . 1 . . . . . . . . . . Structural Interface 1 | . . . . . . . . . . 1 . . . . . . . . . . . . . . Autoassimilate 1 | . . . . . . . . . . . . . . . . 1 . . . . . . . . Robots Hacked 108 | . . . . . 4 . 1 2 10 . 4 1 4 3 11 2 6 10 7 4 5 2 7 25 Non-combat 48 | . . . . . 3 . . . 9 . 3 . 4 . 9 . 1 . 4 . . . . 15 Combat 60 | . . . . . 1 . 1 2 1 . 1 1 . 3 2 2 5 10 3 4 5 2 7 10 Autoassimilated 5 | . . . . . . . . . . . . . . . . . 1 1 . . . . 2 1 Robot Hacks Applied 148 | . . . . . 4 . 1 2 25 . 6 1 7 13 17 2 9 9 10 4 5 2 5 26 parse_system 7 | . . . . . 4 . 1 . . . . . . . . . . . . . 1 . . 1 no_distress 1 | . . . . . . . . . 1 . . . . . . . . . . . . . . . generate_echo 21 | . . . . . . . . . 16 . . . 1 . 4 . . . . . . . . . find_chute 1 | . . . . . . . . . 1 . . . . . . . . . . . . . . . deconstruct_machine 2 | . . . . . . . . . . . . . . . 2 . . . . . . . . . hold_bot 1 | . . . . . . . . . . . 1 . . . . . . . . . . . . . map_walls 3 | . . . . . . . . . . . 1 . . . 1 . . . 1 . . . . . map_earth 1 | . . . . . . . . . 1 . . . . . . . . . . . . . . . drop_inventory 8 | . . . . . . . . . 3 . 1 . 1 . 1 . . . 1 . . . . 1 locate_stockpiles 1 | . . . . . . . . . . . . . . . 1 . . . . . . . . . find_recycling 1 | . . . . . . . . . 1 . . . . . . . . . . . . . . . find_station 1 | . . . . . . . . . . . . . 1 . . . . . . . . . . . purge_threat 8 | . . . . . . . . . . . . . 1 . . . 3 . 3 . . . . 1 disarm_traps 1 | . . . . . . . . . . . . . 1 . . . . . . . . . . . reprogram_traps 2 | . . . . . . . . . . . . . . . 1 . 1 . . . . . . . block_reporting 4 | . . . . . . . . . . . . . 1 . 2 . . . 1 . . . . . map_route 2 | . . . . . . . . . . . . . . . 1 . . . . . . . . 1 find_shortcuts 1 | . . . . . . . . . . . . . . 1 . . . . . . . . . . find_garrison 3 | . . . . . . . . . 1 . 1 . . . . . 1 . . . . . . . link_fov 2 | . . . . . . . . . . . . . . 1 . . . . 1 . . . . . focus_fire 1 | . . . . . . . . . . . . . . 1 . . . . . . . . . . scatter_targeting 4 | . . . . . . . . . 1 . . . . 2 . . . . . . . . 1 . mark_system 1 | . . . . . . . . . . . . . . 1 . . . . . . . . . . link_complan 1 | . . . . . . . . . . . . . . 1 . . . . . . . . . . broadcast_data 1 | . . . . . . . . . . . . . . 1 . . . . . . . . . . disrupt_area 2 | . . . . . . . . . . . . . . 1 . . . 1 . . . . . . amplify_resonance 2 | . . . . . . . . . . . 1 . . . . . . 1 . . . . . . wipe_record 1 | . . . . . . . . . . . . . . 1 . . . . . . . . . . reboot_system 4 | . . . . . . . . . . . . . . . . 1 . . . 1 . . 1 1 go_dormant 2 | . . . . . . . . . . . . . . 2 . . . . . . . . . . overwrite_iff 18 | . . . . . . . . 1 . . . 1 . . . . 2 4 . . 2 1 2 5 streamctrl_high 2 | . . . . . . . . . . . . . . . . . 1 . . 1 . . . . formatsys_low 15 | . . . . . . . . . . . . . 1 . 2 . . . . . . . . 12 formatsys_high 23 | . . . . . . . . 1 . . 1 . . 1 2 1 1 3 3 2 2 1 1 4 Relay Couplers Released 86 | . . . . . . . . 12 . 3 4 5 . 9 3 7 . 17 . 14 . 3 1 8 Machine Destruction 74 | . . . . . . . . 8 . 3 . 5 . 9 3 7 . 17 . 14 . 3 1 4 Programmers 12 | . . . . . . . . 4 . . 4 . . . . . . . . . . . . 4 Attached 30 | . . . . . . . . 1 1 . 3 . 1 2 3 1 4 2 2 1 2 1 1 5 Fabnet Peak Effective % . | . . . . . . . . . . . . . . . . . . . . . . . . . Robots Rewired 15 | . . . . . . . . . . . . 2 . . . . . 6 . 7 . . . . Allies Hacked 4 | . . . . . . . . . . . . . . . . 1 . 1 . . 2 . . . Hacks Repelled . | . . . . . . . . . . . . . . . . . . . . . . . . . Allies | -11 -10 -10 -9 -9 -9 -8 -8 -8 -7 -7 -7 -7 -6 -6 -5 -5 -5 -5 -4 -4 -4 -3 -2 -1 -------- Run | Yrd Mat Min Mat Min Exi Min Mat Gar Fac Gar Fac Gar Fac Gar Fac Gar Fac Gar Fac Gar Fac Res Res Acc Total Allies 101 | . . 5 1 . . . 1 2 . . 3 5 2 1 8 2 6 16 3 11 4 2 5 24 Largest Group 16 | . . 5 5 1 1 1 1 1 . . 2 3 1 1 4 4 2 5 3 8 3 1 3 16 Highest-Rated Group 734 | . . 93 93 44 44 44 44 39 . . 86 86 14 41 116 116 96 270 152 414 161 58 174 734 Highest-Rated Ally 219 | . . 31 44 44 44 44 44 39 . . 43 43 14 41 29 49 49 80 58 116 142 58 58 219 Total Orders 40 | . . . . . . . 2 . . . 2 . 1 1 2 2 6 . . 10 3 . . 11 STAY 20 | . . . . . . . 1 . . . 1 . . 1 1 1 3 . . 5 2 . . 5 FOLLOW 17 | . . . . . . . 1 . . . 1 . . . 1 1 3 . . 5 1 . . 4 AID 3 | . . . . . . . . . . . . . 1 . . . . . . . . . . 2 Ally Attacks 610 | . . . 30 22 . 17 56 56 . . 7 28 . 8 27 43 30 62 11 66 36 6 19 86 Total Damage 19800 | . . . 553 647 . 623 1489 977 . . 190 687 . 191 313 583 510 1802 289 2505 1642 187 633 5979 Kills 157 | . . . 9 11 . 7 20 10 . . 3 3 . . 2 4 2 14 1 21 8 1 5 36 Allies Corrupted 5 | . . . . . . . . . . . . . . . . . . 2 1 . 1 . . 1 Allies Melted 3 | . . . . . . . . 1 . . . . . 1 . . . 1 . . . . . . Field Lobotomies 3 | . . . . . . . . . . . . . . . . . . . . 1 . . . 2 Intel | -11 -10 -10 -9 -9 -9 -8 -8 -8 -7 -7 -7 -7 -6 -6 -5 -5 -5 -5 -4 -4 -4 -3 -2 -1 ------- Run | Yrd Mat Min Mat Min Exi Min Mat Gar Fac Gar Fac Gar Fac Gar Fac Gar Fac Gar Fac Gar Fac Res Res Acc Active Infowar (turns) 2032 | . . . . . . . . . . . 1 . 1 . . . 1 . . . . . 303 1726 Seismic 1 | . . . . . . . . . . . 1 . . . . . . . . . . . . . Jamming 2030 | . . . . . . . . . . . . . . . . . 1 . . . . . 303 1726 ECM 1 | . . . . . . . . . . . . . 1 . . . . . . . . . . . Robot Analysis Total 3 | . 1 . 2 . . . . . . . . . . . . . . . . . . . . . Derelict Logs Recovered 4 | . . 1 . 3 . . . . . . . . . . . . . . . . . . . . Drone Launches . | . . . . . . . . . . . . . . . . . . . . . . . . . Drone Recoveries . | . . . . . . . . . . . . . . . . . . . . . . . . . Exploration | -11 -10 -10 -9 -9 -9 -8 -8 -8 -7 -7 -7 -7 -6 -6 -5 -5 -5 -5 -4 -4 -4 -3 -2 -1 ------------- Run | Yrd Mat Min Mat Min Exi Min Mat Gar Fac Gar Fac Gar Fac Gar Fac Gar Fac Gar Fac Gar Fac Res Res Acc Turns Passed 37390 | 178 646 588 2991 1452 729 1449 3823 1390 957 1667 1397 1769 3406 876 2038 1555 1403 1758 957 1873 1516 501 602 1869 Spaces Moved 16039 | 69 305 357 1296 546 298 577 1554 561 396 730 800 776 1421 328 927 779 523 805 385 889 482 250 246 739 Core 1 | 1 . . . . . . . . . . . . . . . . . . . . . . . . Treads 16038 | 68 305 357 1296 546 298 577 1554 561 396 730 800 776 1421 328 927 779 523 805 385 889 482 250 246 739 Legs . | . . . . . . . . . . . . . . . . . . . . . . . . . Wheels . | . . . . . . . . . . . . . . . . . . . . . . . . . Hover . | . . . . . . . . . . . . . . . . . . . . . . . . . Flight . | . . . . . . . . . . . . . . . . . . . . . . . . . Fastest Speed 50 | 50 160 160 160 240 240 240 160 160 160 152 152 152 208 160 160 160 160 160 158 158 150 150 153 151 Average Speed 182 | 158 160 160 181 240 240 240 202 194 188 170 152 185 208 171 163 160 164 165 160 159 159 150 213 170 Slowest Speed 240 | 160 160 160 240 240 240 240 240 200 200 200 152 212 220 208 240 160 220 220 163 160 160 153 237 221 Overloaded Moves . | . . . . . . . . . . . . . . . . . . . . . . . . . Propulsion Burnouts . | . . . . . . . . . . . . . . . . . . . . . . . . . Robots Hopped 1 | . . . . . . . . . . . . . . . . 1 . . . . . . . . Potential Cave-ins 2 | . . . . . . . . . . . . . . . 2 . . . . . . . . . Cave-ins Triggered 2 | . . . . . . . . . . . . . . . 1 . . 1 . . . . . . Exploration Rate (%) 51 | 5 39 83 86 98 70 94 91 68 14 67 32 93 43 35 24 88 14 90 18 94 15 6 6 20 Regions Visited 24 Branch Regions 4 Pre-discovered Areas 4 | . . 1 . 2 1 . . . . . . . . . . . . . . . . . . . Known Exits Taken 11 | . . . 1 . . . 1 . 1 . 1 . 1 . 1 . 1 . 1 . 1 1 1 . Unknown Exits Taken 6 | 1 1 1 . 1 1 1 . . . . . . . . . . . . . . . . . . Scrap Searched 3 | . . 1 . 1 . 1 . . . . . . . . . . . . . . . . . . Spaces Dug 92 | . . . . 1 . 21 7 3 5 2 . . 3 . 9 11 12 1 7 1 1 2 . 6 Terrain Destroyed 677 | . . . . 7 . 50 53 3 5 35 . 5 34 . 45 36 70 38 46 37 105 9 3 96 Melee 14 | . . . . 1 . . 7 3 . 2 . . . . . . . 1 . . . . . . Projectile 222 | . . . . 6 . . . . . . . 5 10 . 21 12 21 37 11 12 31 9 3 44 AOE 441 | . . . . . . 50 46 . 5 33 . . 24 . 24 24 49 . 35 25 74 . . 52 Terrain Rammed . | . . . . . . . . . . . . . . . . . . . . . . . . . Walls Destroyed . | . . . . . . . . . . . . . . . . . . . . . . . . . Machines Disabled . | . . . . . . . . . . . . . . . . . . . . . . . . . Actions | -11 -10 -10 -9 -9 -9 -8 -8 -8 -7 -7 -7 -7 -6 -6 -5 -5 -5 -5 -4 -4 -4 -3 -2 -1 --------- Run | Yrd Mat Min Mat Min Exi Min Mat Gar Fac Gar Fac Gar Fac Gar Fac Gar Fac Gar Fac Gar Fac Res Res Acc Total 22310 | 101 396 366 1724 621 310 613 2060 786 579 1077 941 1012 1810 607 1340 984 1002 1102 665 1283 1091 352 308 1180 Wait 3472 | 5 25 3 169 36 . 10 277 140 112 81 88 88 178 224 278 124 337 141 188 211 420 44 26 267 Move 16014 | 68 304 356 1295 545 297 576 1554 560 395 729 799 775 1421 327 925 776 522 804 385 888 481 249 245 738 Hop 1 | . . . . . . . . . . . . . . . . 1 . . . . . . . . Pick Up 212 | 5 10 . 29 1 3 2 28 6 3 9 4 11 11 5 12 7 5 12 6 11 7 12 5 8 Fast Attach 138 | 6 4 . 12 . . . 16 1 3 8 4 7 17 2 6 2 6 6 5 15 4 5 6 3 Attach 68 | . 1 . 3 2 . 2 3 3 3 . . 3 7 1 3 3 2 5 4 3 4 9 3 4 Detach 38 | . 1 . 5 . . . 2 2 1 . 1 2 4 . 1 1 2 2 . 5 1 4 2 2 Swap 320 | . 3 . 21 2 4 3 32 7 12 37 10 8 19 4 20 11 20 16 13 18 27 6 3 24 Drop 260 | . 9 . 39 . 2 2 44 5 3 24 6 15 22 5 11 4 8 14 4 19 7 6 5 6 Fire 1121 | 17 33 3 110 30 . 14 82 39 15 52 20 81 41 39 69 49 33 63 58 56 77 11 13 116 Melee 104 | . . . . 1 4 . 8 8 28 4 3 3 6 . 5 3 4 16 . 9 . 2 . . Ram . | . . . . . . . . . . . . . . . . . . . . . . . . . Kick . | . . . . . . . . . . . . . . . . . . . . . . . . . Crush 87 | . 6 4 15 4 . 4 14 1 2 . 6 2 4 . 7 . 2 . 2 . 2 3 . 9 Escape Stasis 26 | . . . . . . . . 13 2 3 . 4 . . 1 . . 2 . 1 . . . . Rewire 93 | . . . . . . . . 1 . . . 13 1 . 2 3 1 21 . 47 . 1 . 3 Trap 356 | . . . 26 . . . . . . 130 . . 79 . . . 60 . . . 61 . . . Miscellaneous . | . . . . . . . . . . . . . . . . . . . . . . . . . Route ------- -11/Scrapyard -10/Materials (discovered 2 exits: *Mat / [*Min]) -10/Mines -9/Materials (discovered 4 exits: *Mat x3 / *Min) -9/Mines (discovered 4 exits: *Mat x2 / *Exi / [*Zio]) -9/Exiles -8/Mines (discovered 2 exits: *Mat x2) -8/Materials (discovered 6 exits: *Fac x3 / [*Sto x2] / Gar) -8/Garrison (discovered 3 exits: *Fac x3) -7/Factory -7/Garrison (discovered 3 exits: *Fac x3) -7/Factory (discovered 2 exits: Fac / Gar) -7/Garrison (discovered 3 exits: *Fac x3) -6/Factory (discovered 4 exits: *Fac x2 / [*Low] / Gar) -6/Garrison (discovered 3 exits: *Fac x3) -5/Factory (discovered 3 exits: *Fac x2 / Gar) -5/Garrison (discovered 3 exits: *Fac x3) -5/Factory (discovered 3 exits: *Fac / [*Upp] / Gar) -5/Garrison (discovered 3 exits: *Fac x3) -4/Factory (discovered 2 exits: *Res / Gar) -4/Garrison (discovered 3 exits: *Fac x3) -4/Factory -3/Research -2/Research -1/Access To Epsilon Eridani History --------- Turn | Location | Event 11 | -11/Scrapyard | Discovered new exit (range 15) 179 | -11/Scrapyard | Entered Materials 309 | -10/Materials | Build established: Mutant 357 | -10/Materials | Discovered new exit (range 13) 564 | -10/Materials | Discovered new exit (range 16) 825 | -10/Materials | Entered Mines 1161 | -10/Mines | Discovered new exit (range 10) 1204 | -10/Mines | Learned location of Mines (-9) 1204 | -10/Mines | Assisted by bots powering up and referring to "LRC-V3" 1413 | -10/Mines | Entered Materials 1413 | -9/Materials | Accompanied by 5 allies 1413 | -9/Materials | Evolved 2 slots: Propulsion x1, Utility x1 1418 | -9/Materials | Led the pair of lost Derelicts to an unsafe place 1422 | -9/Materials | Identified exit to Mines 1522 | -9/Materials | Lost 4 allies 1604 | -9/Materials | Central database locked down 1672 | -9/Materials | Discovered new exit (range 10) 1848 | -9/Materials | Build established: Scavenger-Mutant 2825 | -9/Materials | Destroyed 8 combat bots 3125 | -9/Materials | Discovered new exit (range 6) 3332 | -9/Materials | Repaired Lgt. Treads 3565 | -9/Materials | Discovered new exit (range 13) 4213 | -9/Materials | First assault squad dispatched 4224 | -9/Materials | Botcube activated 4244 | -9/Materials | Botcube completed mutation into treaded form, armed with 2 cannons. 4253 | -9/Materials | Build established: Mutant 4404 | -9/Materials | Entered Mines 4404 | -9/Mines | Accompanied by 1 ally 4541 | -9/Mines | Discovered new exit (range 8) 4561 | -9/Mines | Core integrity fell below 50% 4617 | -9/Mines | Received a Rocket Launcher from a helpful Derelict 4770 | -9/Mines | Learned Materials terminal intel 4772 | -9/Mines | Discovered new exit (range 15) 4778 | -9/Mines | A Derelict revealed a hidden shortcut to a safe place 4881 | -9/Mines | Assembled infested the area 4999 | -9/Mines | Destroyed 7 combat bots 5138 | -9/Mines | Deemed a non-threat by the Exiles lab entrance 5138 | -9/Mines | Discovered new exit (range 5) 5856 | -9/Mines | Entered Exiles 5856 | -9/Exiles | Accompanied by 1 ally 5918 | -9/Exiles | Met 8R-AWN 5962 | -9/Exiles | Met EX-HEX 6097 | -9/Exiles | Met EX-DEC 6166 | -9/Exiles | Learned location of Zion (-7) 6221 | -9/Exiles | Met EX-BIN 6251 | -9/Exiles | Aligned with FarCom system 6254 | -9/Exiles | Given EX-Vault access code 6315 | -9/Exiles | Opened EX-Vault 6332 | -9/Exiles | Found Field Lobotomy Kit 6381 | -9/Exiles | Warned to stay clear of 0b10 Research branches 6563 | -9/Exiles | Discovered new exit (range 10) 6585 | -9/Exiles | Left Exiles lab with Field Lobotomy Kit 6585 | -9/Exiles | Entered Mines 6585 | -8/Mines | Accompanied by 1 ally 6951 | -8/Mines | Discovered new exit (range 12) 7981 | -8/Mines | Discovered new exit (range 7) 8034 | -8/Mines | Entered Materials 8034 | -8/Materials | Accompanied by 1 ally 8034 | -8/Materials | Evolved 2 slots: Utility x1, Weapon x1 8035 | -8/Materials | Loaded intel: 12 terminal locations 8364 | -8/Materials | Build established: Skirmisher 8484 | -8/Materials | Discovered new exit (range 16) 8689 | -8/Materials | Build established: Tank 9069 | -8/Materials | Found Botcube 9214 | -8/Materials | Repaired Minigun 9242 | -8/Materials | Repaired Lgt. Treads+ 9513 | -8/Materials | Build established: Scavenger-Skirmisher 9719 | -8/Materials | Botcube activated 9733 | -8/Materials | Botcube completed mutation into treaded form, armed with 2 guns. 10853 | -8/Materials | Discovered new exit (range 3) 11060 | -8/Materials | Repaired Reactive Plating 11319 | -8/Materials | Discovered new exit (range 16) 11553 | -8/Materials | Repaired Minigun+ 11668 | -8/Materials | Discovered new exit (range 13) 11841 | -8/Materials | Discovered new exit (range 5) 11857 | -8/Materials | Identified exit to Garrison 11857 | -8/Materials | Entered Garrison 11857 | -8/Garrison | Accompanied by 1 ally 11923 | -8/Garrison | Triggered checkpoint 11992 | -8/Garrison | Garrison Relay disabled 12022 | -8/Garrison | Build established: Skirmisher 12181 | -8/Garrison | Triggered checkpoint 12183 | -8/Garrison | Triggered checkpoint 12275 | -8/Garrison | Spotted B-75 Beast 12293 | -8/Garrison | Destroyed B-75 Beast 12298 | -8/Garrison | Discovered new exit (range 14) 12369 | -8/Garrison | Triggered checkpoint 12481 | -8/Garrison | Murdered Mutated Botcube 12481 | -8/Garrison | Destroyed Mutated Botcube 12514 | -8/Garrison | Garrison Relay disabled 12709 | -8/Garrison | Triggered checkpoint 12873 | -8/Garrison | Discovered new exit (range 37) 12873 | -8/Garrison | Discovered new exit (range 50) 12873 | -8/Garrison | Discovered new exit (range 12) 12943 | -8/Garrison | Triggered checkpoint 13037 | -8/Garrison | Installed Relay Interface Framework 13040 | -8/Garrison | Phase Generator disabled 13208 | -8/Garrison | Expanded RIF knowledge: Zone Cloak 13247 | -8/Garrison | Entered Factory 13247 | -7/Factory | Evolved 2 slots: Utility x2 13599 | -7/Factory | Build established: Gunner 13616 | -7/Factory | Repaired Minigun+ 13961 | -7/Factory | Identified exit to Garrison 14143 | -7/Factory | Garrison activated, responded to threat 14204 | -7/Factory | Entered Garrison 14294 | -7/Garrison | Discovered new exit (range 43) 14294 | -7/Garrison | Discovered new exit (range 46) 14294 | -7/Garrison | Discovered new exit (range 70) 14399 | -7/Garrison | Garrison Relay disabled 15234 | -7/Garrison | Triggered checkpoint 15600 | -7/Garrison | Triggered checkpoint 15654 | -7/Garrison | Build established: Tank 15662 | -7/Garrison | Triggered checkpoint 15709 | -7/Garrison | Expanded RIF knowledge: Structural Interface 15871 | -7/Garrison | Entered Factory 15871 | -7/Factory | Discovered new exit (range 15) 16919 | -7/Factory | Central database locked down 17105 | -7/Factory | Identified exit to Garrison 17268 | -7/Factory | Entered Garrison 17268 | -7/Garrison | Accompanied by 2 allies 17444 | -7/Garrison | Triggered checkpoint 17501 | -7/Garrison | Garrison Relay disabled 17734 | -7/Garrison | Triggered checkpoint 17762 | -7/Garrison | Triggered checkpoint 17808 | -7/Garrison | Discovered new exit (range 11) 18202 | -7/Garrison | Triggered checkpoint 18319 | -7/Garrison | Discovered new exit (range 8) 18504 | -7/Garrison | Triggered checkpoint 18568 | -7/Garrison | Rescued a captive Derelict 18571 | -7/Garrison | Rescued a captive Derelict 18658 | -7/Garrison | Triggered checkpoint 18714 | -7/Garrison | Lost 3 allies 18836 | -7/Garrison | Expanded RIF knowledge: Signal Jamming 18849 | -7/Garrison | Discovered new exit (range 10) 19037 | -7/Garrison | Entered Factory 19037 | -6/Factory | Evolved 2 slots: Propulsion x1, Utility x1 19276 | -6/Factory | Repaired Adv. Treads+ 19388 | -6/Factory | Discovered new exit (range 6) 19470 | -6/Factory | Build established: Trapper-Tank 19874 | -6/Factory | P-60 Hacker assimilated allied Machinist 5a 20001 | -6/Factory | Discovered new exit (range 15) 21737 | -6/Factory | Repaired Particle Reactor 21806 | -6/Factory | Repaired Imp. Heavy Treads? 21893 | -6/Factory | Discovered new exit (range 12) 22443 | -6/Factory | Identified exit to Garrison 22443 | -6/Factory | Entered Garrison 22536 | -6/Garrison | Garrison Relay disabled 22562 | -6/Garrison | Discovered new exit (range 38) 22562 | -6/Garrison | Discovered new exit (range 91) 22562 | -6/Garrison | Discovered new exit (range 58) 22599 | -6/Garrison | Triggered checkpoint 22824 | -6/Garrison | Triggered checkpoint 22901 | -6/Garrison | Triggered checkpoint 23041 | -6/Garrison | Expanded RIF knowledge: Alert ID Control 23133 | -6/Garrison | Triggered checkpoint 23183 | -6/Garrison | Garrison Relay disabled 23319 | -6/Garrison | Entered Factory 23319 | -5/Factory | Evolved 2 slots: Power x1, Propulsion x1 23371 | -5/Factory | Discovered new exit (range 15) 24070 | -5/Factory | Crushed by falling debris 24078 | -5/Factory | Found Imp. Powered Armor 24236 | -5/Factory | Discovered new exit (range 4) 25333 | -5/Factory | Identified exit to Garrison 25344 | -5/Factory | Central database locked down 25357 | -5/Factory | Entered Garrison 25357 | -5/Garrison | Accompanied by 4 allies 25482 | -5/Garrison | Triggered checkpoint 25557 | -5/Garrison | Lost 4 allies 25692 | -5/Garrison | Triggered checkpoint 25855 | -5/Garrison | Garrison Relay disabled 25907 | -5/Garrison | Discovered new exit (range 12) 26001 | -5/Garrison | Triggered checkpoint 26068 | -5/Garrison | Expanded RIF knowledge: Autoassimilate 26149 | -5/Garrison | Build established: Trapper-Mutant 26156 | -5/Garrison | Discovered new exit (range 12) 26229 | -5/Garrison | Triggered checkpoint 26276 | -5/Garrison | Rescued a captive Derelict 26361 | -5/Garrison | Triggered checkpoint 26527 | -5/Garrison | Build established: Trapper-Tank 26536 | -5/Garrison | Garrison Relay disabled 26589 | -5/Garrison | Discovered new exit (range 11) 26621 | -5/Garrison | Spotted Striker 26621 | -5/Garrison | Spotted Striker 26656 | -5/Garrison | Destroyed Striker 26661 | -5/Garrison | Destroyed Striker 26912 | -5/Garrison | Entered Factory 26912 | -5/Factory | Accompanied by 1 ally 26962 | -5/Factory | Build established: Botlord-Tank 27726 | -5/Factory | Discovered new exit (range 5) 27729 | -5/Factory | Discovered new exit (range 11) 27848 | -5/Factory | Build established: Trapper-Mutant 27894 | -5/Factory | P-70 Sage assimilated allied Sentinel 6a 28205 | -5/Factory | Garrison activated, responded to threat 28211 | -5/Factory | Build established: Trapper-Tank 28259 | -5/Factory | Identified exit to Garrison 28315 | -5/Factory | Entered Garrison 28315 | -5/Garrison | Accompanied by 2 allies 28317 | -5/Garrison | Triggered checkpoint 28355 | -5/Garrison | Expanded RIF knowledge: Coupler Efficiency 28522 | -5/Garrison | Garrison Relay disabled 28531 | -5/Garrison | Triggered checkpoint 28637 | -5/Garrison | Triggered checkpoint 28638 | -5/Garrison | Triggered checkpoint 28691 | -5/Garrison | Lost 3 allies 28826 | -5/Garrison | Discovered new exit (range 10) 28977 | -5/Garrison | Lost 5 allies 28991 | -5/Garrison | Garrison Relay disabled 29001 | -5/Garrison | Triggered checkpoint 29091 | -5/Garrison | Spotted B-75 Beast 29239 | -5/Garrison | Build established: Trapper-Gunner 29307 | -5/Garrison | Triggered checkpoint 29335 | -5/Garrison | Triggered checkpoint 29429 | -5/Garrison | Triggered checkpoint 29459 | -5/Garrison | Found embedded Infiltrators 29471 | -5/Garrison | Garrison Relay disabled 29524 | -5/Garrison | Crushed by falling debris 29557 | -5/Garrison | Discovered new exit (range 13) 29564 | -5/Garrison | Build established: Trapper-Tank 29635 | -5/Garrison | Lost 3 allies 29831 | -5/Garrison | Lost 3 allies 29845 | -5/Garrison | Expanded RIF knowledge: Coupler Efficiency 29889 | -5/Garrison | Build established: Trapper-Gunner 29896 | -5/Garrison | Discovered new exit (range 5) 30026 | -5/Garrison | Garrison Relay disabled 30073 | -5/Garrison | Entered Factory 30073 | -4/Factory | Accompanied by 1 ally 30073 | -4/Factory | Evolved 2 slots: Propulsion x1, Utility x1 30373 | -4/Factory | Discovered new exit (range 9) 30478 | -4/Factory | Repaired Hvy. Linear Accelerator 30804 | -4/Factory | Lost 3 allies 31030 | -4/Factory | Identified exit to Garrison 31030 | -4/Factory | Entered Garrison 31084 | -4/Garrison | Triggered checkpoint 31314 | -4/Garrison | Garrison Relay disabled 31376 | -4/Garrison | Spotted B-86 Titan 31389 | -4/Garrison | Assimilated B-86 Titan with FLK Orb 31390 | -4/Garrison | Triggered checkpoint 31391 | -4/Garrison | Triggered checkpoint 31440 | -4/Garrison | Triggered checkpoint 31478 | -4/Garrison | Triggered checkpoint 31531 | -4/Garrison | Expanded RIF knowledge: Coupler Efficiency 31556 | -4/Garrison | Triggered checkpoint 31786 | -4/Garrison | Garrison Relay disabled 31827 | -4/Garrison | Discovered new exit (range 15) 32111 | -4/Garrison | Build established: Botlord-Gunner 32123 | -4/Garrison | Discovered new exit (range 10) 32216 | -4/Garrison | Found Unknown Device 32216 | -4/Garrison | Identified Heavy Servo Lattice 32448 | -4/Garrison | Triggered checkpoint 32626 | -4/Garrison | Lost 4 allies 32670 | -4/Garrison | Triggered checkpoint 32702 | -4/Garrison | Learned Factory security intel 32722 | -4/Garrison | Discovered new exit (range 2) 32887 | -4/Garrison | Build established: Botlord-Tank 32903 | -4/Garrison | Entered Factory 32903 | -4/Factory | Accompanied by 3 allies 33004 | -4/Factory | Lost 3 allies 33040 | -4/Factory | Garrison activated, responded to threat 33189 | -4/Factory | Unchained authorized (BL-1NK) 33229 | -4/Factory | Exiles provided nearest exit location to -3/Research 33903 | -4/Factory | First assault squad dispatched 33988 | -4/Factory | Destroyed BL-1NK 34293 | -4/Factory | Found Prototype Processor 34293 | -4/Factory | Identified Exp. Signal Interpreter 34298 | -4/Factory | Found Exp. Signal Interpreter 34400 | -4/Factory | Cargo convoy interrupted 34405 | -4/Factory | Spotted Executioner 34414 | -4/Factory | Spotted B-86 Titan 34419 | -4/Factory | Entered Research 34419 | -3/Research | Evolved 2 slots: Power x1, Utility x1 34449 | -3/Research | Lost 6 parts (2n3u1w) 34664 | -3/Research | Found Prototype Launcher 34664 | -3/Research | Identified Mni. Smartbomb Launcher 34669 | -3/Research | Found Mni. Smartbomb Launcher 34672 | -3/Research | Found Mni. Smartbomb Launcher 34674 | -3/Research | Found Mni. Smartbomb Launcher 34882 | -3/Research | Discovered new exit (range 14) 34918 | -3/Research | Identified exit to Research 34920 | -3/Research | Entered another Research area 34920 | -2/Research | Evolved 2 slots: Utility x2 35255 | -2/Research | Discovered new exit (range 16) 35261 | -2/Research | Garrison activated, responded to threat 35344 | -2/Research | Identified exit to Access 35522 | -2/Research | Entered Access 35522 | -1/Access | Accompanied by 2 allies 35522 | -1/Access | Evolved 2 slots: Utility x2 36459 | -1/Access | P-80 Master assimilated allied Director 10a 36724 | -1/Access | Discovered new exit (range 6) 36752 | -1/Access | Spotted B-99 Colossus 36753 | -1/Access | Spotted B-99 Colossus 36755 | -1/Access | Assimilated B-99 Colossus with FLK Orb 36758 | -1/Access | Assimilated B-99 Colossus with FLK Orb 37272 | -1/Access | First assault squad dispatched 37391 | *** | Escaped! Last Messages --------------- 37320_ Jacked K-01 Serf... >>formatsys_low Rerouting network defenses. Erasing system data. Installing primary routines, ETC: 6. 37323_ Jacked T-07 Excavator... >>formatsys_low Rerouting network defenses. Erasing system data. Installing primary routines, ETC: 6. 37324_ Jacked K-01 Serf... >>formatsys_low Rerouting network defenses. Erasing system data. Installing primary routines, ETC: 6. 37326_ Serf 10d reactivates. 37329_ Excavator 10a reactivates. 37354_ Acquired 1 matter. 37378_ Acquired 6 matter. 37385_ Acquired 2 matter. Map ----- +----------------------------------------------------+ | ?????????????????????????????????????????????????? | | ?????????????????????????????????????????????????? | | ?????????????????????????????????????????????????? | | ?????????????????????????????????????????????????? | | ?????????????????????????????????????????????????? | | ?????????????????????????????????????????????????? | | ?????????????????????????????????????????????????? | | ?????????????????????????????????????????????????? | | ?????????????????????????????????????????????????? | | ?????????????????????????????????????????????????? | | ??????????????????????????????????????? ?????????? | | ??????????????????????????????????????? #????????? | | ??????????????????????????????????????? #????????? | | ?????????????????????????????????????? +????????? | | ?????????????????????????????????????? #????????? | | ?????????????????????????????????????? #????????? | | ########?????????????????????????????? #????????? | | #?????????????????????????????? #????????? | | ###???????????????????????????# #????????? | | % # ???????????????????###?????# #????????? | | =! # #########??########## ####### #????????? | | ## =% # #! "??" wk #????????? | | %#! #%# = """"u ktkkgR #????????? | | !% ###%!= % "" % uku g #????????? | | %[[*! =%!! " % g #????????? | | #**%* ![ =*=%@ #????????? | | % %[=!! %%=" #????????? | | %%!!!!=% %""""* ! #????????? | | %=#*##|#" "??" BB #????????? | | %##=%^ " "??" BB BB """ """ #????????? | | % ##! # %% %"??" BB """T""" #????????? | | ## #########??########## ####### #????????? | | ## ^ #???????????????????###?????# #????????? | | ## = #???????????????????????????# #????????? | | +### #???????????????????????????# #????????? | | #?#^^ #???????????????????????????# #????????? | | /### #???????????????????????????# #????????? | | [=#################################### #????????? | | !%+!=[ %!= #????????? | | *!%%[% % %/%% % #????????? | | ==#![##################"//#[######+#######???????? | | # #???? # #?# ! #???????? | | # #???? # #?# | ###?????? | | # #???? = + #?# ""#?????? | | #! #???? # #?# " ""#?????? | | #% #???? # #?# """" ""#?????? | | !| #????? # #?# """"" ! #?????? | | "! #?????? # #?# """"" ""#?????? | | # #??????############ #?# """" ""#?????? | | ### #?????????????????# #?# " ""#?????? | +----------------------------------------------------+ Best States ------------- Heat Dissipation 83 Coolant Potential 100 Energy Generation 61 Energy Capacity 800 Matter Stores 300 Matter Capacity 300 Sight Range 16 Terrain Scan Density 10 Jamming Range 16 Base Temperature (-) 200 Corruption Block 15 Armor Coverage 1200 Resistance: KI 30 Resistance: TH 10 Resistance: EM 15 Propulsion Shielding 33 Utility Shielding 90 Weapon Cycling 20 Evasion (%) 40 Targeting Accuracy 8 Core Analysis 6 Recoil Reduction 6 Kinecelleration 40 Offensive Hacking 10 Defensive Hacking 12 Relay Coupler Types 3 Relay Coupler Value 135 Trap Extractor Capacity 6 Item Schematics ----------------- Plasma Cutter | -9/Materials | Scanalyzed Imp. Light Cannon | -9/Materials | Extracted Hcp. Matter Pod | -9/Materials | Extracted Hover Unit | -9/Materials | Extracted Imp. Heavy Treads | -7/Factory | Scanalyzed Hvy. Linear Accelerator | -6/Factory | Scanalyzed Exp. Utility Shielding | -5/Factory | Scanalyzed Wave Gun | -5/Factory | Extracted Imp. Datajack | -5/Factory | Extracted Med. Storage Unit | -5/Factory | Extracted Lrg. Storage Unit | -5/Factory | Extracted Robot Schematics ------------------ None Fabricated ------------ Nothing Repaired ---------- Lgt. Treads | 58% | -9/Materials Minigun | 38% | -8/Materials Lgt. Treads | 60% | -8/Materials Reactive Plating | 27% | -8/Materials Minigun | 67% | -8/Materials Minigun | 50% | -7/Factory Adv. Treads | 16% | -6/Factory Particle Reactor | 36% | -6/Factory Imp. Heavy Treads | 56% | -6/Factory Hvy. Linear Accelerator | 2% | -4/Factory Studied --------- Lgt. Treads | -8/Materials | Hacked Imp. Treads | -8/Materials | Hacked Minigun | -8/Materials | Hacked Adv. Treads | -8/Materials | Hacked Rocket Launcher | -8/Materials | Hacked Med. Treads | -7/Factory | Hacked Remote Datajack | -6/Factory | Hacked Mic. Nuclear Core | -6/Factory | Hacked Imp. Heavy Treads | -5/Factory | Hacked Biometal Heavy Treads | -2/Research | Hacked Enh. Nova Cannon | -1/Access | Hacked Alien Tech Used ----------------- None Achievements -------------- None Challenges ------------ None Game ------ Seed InsulatedVoltaicGravjet Manual? 0 Play Time 03:34:18 Cumulative 2090.0 hours Start 2026.01.13 @ 02:59:08 End 2026.01.14 @ 02:53:45 Sessions 3 Manual Loads 0 Difficulty Rogue Special Mode None Game No. 1342 Rogue 1338 Adventurer 4 Explorer 0 Win Type 0 Total 288 Types 216/13/22/11/3/1/4/10/5/3 Lore% 98 Gallery% 96 Achievement% 88 Wizard Run 0 Options --------- Layout 2 ASCII 0 Keyboard 1 Movement Vi Keybinds 0 Fullscreen 0 Font 24/Terminus Map View 59x48 Zoom Use 0% Tactical HUD 1 Map Filters NONE Filters NONE Steam 1 RUN: 36e4b76c-cee9-464a-8bb7-e7c5097cf0a3